[Event "NJSK 2026 Meisjes C"]
[Site "Helmond, Netherlands"]
[Date "2026.04.26"]
[Round "2.8"]
[White "Urban, Hannah"]
[Black "Jongejan, Evienne"]
[Result "0-1"]
[TimeControl "90min/40moves + 30min + 30sec/move"]
[WhiteTitle "-"]
[BlackTitle "-"]
[WhiteFideId "40109364"]
[BlackFideId "40109798"]
[WhiteElo "1438"]
[BlackElo "1488"]

1. c4 {[%clk 01:30:57]} {[%emt 00:00:04]} e5 {[%clk 01:30:41]} {[%emt
00:00:18]} 2. g3 {[%clk 01:31:14]} {[%emt 00:00:12]} c6 {[%clk 01:30:56]}
{[%emt 00:00:16]} 3. b3 {[%clk 01:30:43]} {[%emt 00:01:02]} d5 {[%clk
01:31:03]} {[%emt 00:00:20]} 4. Bb2 {[%clk 01:30:43]} {[%emt 00:00:31]} Bd6
{[%clk 01:30:32]} {[%emt 00:01:04]} 5. d3 {[%clk 01:30:37]} {[%emt 00:00:33]}
Be6 {[%clk 01:29:01]} {[%emt 00:02:01]} 6. Bg2 {[%clk 01:29:34]} {[%emt
00:01:32]} Nd7 {[%clk 01:28:14]} {[%emt 00:01:18]} 7. Nd2 {[%clk 01:29:27]}
{[%emt 00:00:38]} Ngf6 {[%clk 01:27:51]} {[%emt 00:00:52]} 8. Qc2 {[%clk
01:28:10]} {[%emt 00:01:48]} O-O {[%clk 01:26:54]} {[%emt 00:01:26]} 9. Ngf3
{[%clk 01:28:17]} {[%emt 00:00:24]} Nh5 {[%clk 01:12:35]} {[%emt 00:14:50]} 10.
a3 {[%clk 01:16:58]} {[%emt 00:11:48]} Qe7 {[%clk 01:11:26]} {[%emt 00:01:38]}
11. O-O {[%clk 01:13:44]} {[%emt 00:03:44]} f5 {[%clk 01:04:35]} {[%emt
00:07:22]} 12. Rfe1 {[%clk 01:03:04]} {[%emt 00:11:10]} f4 {[%clk 01:04:40]}
{[%emt 00:00:23]} 13. b4 {[%clk 01:02:06]} {[%emt 00:01:30]} a5 {[%clk
00:59:40]} {[%emt 00:05:29]} 14. c5 {[%clk 00:59:32]} {[%emt 00:03:04]} Bc7
{[%clk 00:59:53]} {[%emt 00:00:17]} 15. Kh1 {[%clk 00:58:34]} {[%emt 00:01:29]}
b6 {[%clk 00:51:02]} {[%emt 00:09:20]} 16. cxb6 {[%clk 00:56:42]} {[%emt
00:02:22]} Bxb6 {[%clk 00:51:11]} {[%emt 00:00:21]} 17. Rf1 {[%clk 00:55:30]}
{[%emt 00:01:41]} axb4 {[%clk 00:50:13]} {[%emt 00:01:30]} 18. axb4 {[%clk
00:53:40]} {[%emt 00:02:19]} Rxa1 {[%clk 00:50:33]} {[%emt 00:00:11]} 19. Bxa1
{[%clk 00:53:47]} {[%emt 00:00:23]} fxg3 {[%clk 00:41:56]} {[%emt 00:09:06]} 20.
fxg3 {[%clk 00:52:50]} {[%emt 00:01:27]} Rf6 {[%clk 00:34:55]} {[%emt
00:07:31]} 21. Nxe5 {[%clk 00:50:54]} {[%emt 00:02:26]} Nxg3+ {[%clk 00:35:04]}
{[%emt 00:00:21]} 22. hxg3 {[%clk 00:50:07]} {[%emt 00:01:17]} Rh6+ {[%clk
00:35:07]} {[%emt 00:00:27]} 23. Bh3 {[%clk 00:50:29]} {[%emt 00:00:09]} Bxh3
{[%clk 00:35:05]} {[%emt 00:00:31]} 24. d4 {[%clk 00:49:54]} {[%emt 00:01:06]}
Bxf1+ {[%clk 00:35:17]} {[%emt 00:00:19]} 25. Kg1 {[%clk 00:50:10]} {[%emt
00:00:13]} Nxe5 {[%clk 00:35:20]} {[%emt 00:00:27]} 26. Nxf1 {[%clk 00:49:38]}
{[%emt 00:01:01]} Qa7 {[%clk 00:33:54]} {[%emt 00:01:57]} 27. Qf5 {[%clk
00:48:17]} {[%emt 00:01:43]} Nd7 {[%clk 00:31:33]} {[%emt 00:02:57]} 28. b5
{[%clk 00:47:09]} {[%emt 00:01:39]} Rf6 {[%clk 00:30:51]} {[%emt 00:01:14]} 29.
Qh5 {[%clk 00:46:02]} {[%emt 00:01:35]} Qxa1 {[%clk 00:29:19]} {[%emt
00:02:01]} 30. Qe8+ {[%clk 00:44:47]} {[%emt 00:01:46]} Rf8 {[%clk 00:29:38]}
{[%emt 00:00:11]} 31. Qe6+ {[%clk 00:44:34]} {[%emt 00:00:43]} Kh8 {[%clk
00:29:57]} {[%emt 00:00:11]} 32. Qh3 {[%clk 00:44:21]} {[%emt 00:00:43]} Bxd4+
{[%emt 00:01:16]} 33. Kh2 {[%clk 00:44:23]} Rf2+ {[%clk 00:29:44]} {[%emt
00:00:24]} 34. Kh1 {[%clk 00:44:28]} {[%emt 00:00:26]} Rxf1+ {[%clk 00:29:38]}
{[%emt 00:00:36]} 35. Qxf1 {[%clk 00:44:44]} {[%emt 00:00:14]} Qxf1+ {[%clk
00:30:03]} {[%emt 00:00:05]} 36. Kh2 {[%clk 00:45:08]} {[%emt 00:00:06]} Nf6
{[%clk 00:30:06]} {[%emt 00:00:27]} 37. g4 {[%clk 00:45:23]} {[%emt 00:00:15]}
Be5# {[%clk 00:30:26]} {[%emt 00:00:10]} 0-1

[Event "NJSK 2026 Meisjes C"]
[Site "Helmond, Netherlands"]
[Date "2026.04.27"]
[Round "3.1"]
[White "Ngangbam, Malem"]
[Black "Elangkumaran, Anumitra"]
[Result "1-0"]
[TimeControl "90min/40moves + 30min + 30sec/move"]
[WhiteTitle "-"]
[BlackTitle "-"]
[WhiteFideId "40102343"]
[BlackFideId "40109070"]
[WhiteElo "1600"]
[BlackElo "1768"]

1. e4 {[%clk 01:30:58]} {[%emt 00:00:02]} e5 {[%clk 01:30:50]} {[%emt
00:00:11]} 2. Nf3 {[%clk 01:31:22]} {[%emt 00:00:06]} Nc6 {[%clk 01:31:07]}
{[%emt 00:00:13]} 3. Bc4 {[%clk 01:31:43]} {[%emt 00:00:09]} Bc5 {[%clk
01:31:17]} {[%emt 00:00:19]} 4. c3 {[%clk 01:31:55]} {[%emt 00:00:19]} Nf6
{[%clk 01:31:15]} {[%emt 00:00:31]} 5. d4 {[%clk 01:31:57]} {[%emt 00:00:27]}
exd4 {[%clk 01:31:14]} {[%emt 00:00:32]} 6. e5 {[%clk 01:31:55]} {[%emt
00:00:33]} d5 {[%clk 01:30:40]} {[%emt 00:01:03]} 7. Bb5 {[%clk 01:32:17]}
{[%emt 00:00:08]} Ne4 {[%clk 01:30:42]} {[%emt 00:00:28]} 8. cxd4 {[%clk
01:32:31]} {[%emt 00:00:17]} Bb6 {[%clk 01:30:25]} {[%emt 00:00:47]} 9. Qc2
{[%clk 01:30:04]} {[%emt 00:02:56]} Bd7 {[%clk 01:21:32]} {[%emt 00:09:23]} 10.
Be3 {[%clk 01:28:43]} {[%emt 00:01:50]} O-O {[%clk 01:16:53]} {[%emt 00:05:10]}
11. Bxc6 {[%clk 01:18:26]} {[%emt 00:10:47]} Bxc6 {[%clk 01:10:38]} {[%emt
00:06:45]} 12. O-O {[%clk 01:18:08]} {[%emt 00:00:49]} f6 {[%clk 01:03:48]}
{[%emt 00:07:20]} 13. Nc3 {[%clk 01:13:36]} {[%emt 00:05:01]} Qd7 {[%clk
00:58:10]} {[%emt 00:06:08]} 14. exf6 {[%clk 00:53:28]} {[%emt 00:20:37]} Nxf6
{[%clk 00:44:07]} {[%emt 00:14:34]} 15. Ne5 {[%clk 00:52:22]} {[%emt 00:01:36]}
Qe6 {[%clk 00:36:59]} {[%emt 00:07:39]} 16. h3 {[%clk 00:41:48]} {[%emt
00:11:03]} Nd7 {[%clk 00:29:50]} {[%emt 00:07:39]} 17. Nd3 {[%clk 00:40:12]}
{[%emt 00:02:06]} a5 {[%clk 00:20:49]} {[%emt 00:09:31]} 18. Rfe1 {[%clk
00:35:23]} {[%emt 00:05:18]} Qg6 {[%clk 00:19:02]} {[%emt 00:02:17]} 19. Qd2
{[%clk 00:29:59]} {[%emt 00:05:54]} Rae8 {[%clk 00:15:25]} {[%emt 00:04:08]} 20.
a3 {[%clk 00:26:16]} {[%emt 00:04:13]} a4 {[%clk 00:12:59]} {[%emt 00:02:56]}
21. Nf4 {[%clk 00:12:07]} {[%emt 00:14:38]} Qd6 {[%clk 00:11:45]} {[%emt
00:01:45]} 22. Nce2 {[%clk 00:08:02]} {[%emt 00:04:35]} Nf6 {[%clk 00:10:29]}
{[%emt 00:01:46]} 23. Ng3 {[%clk 00:07:31]} {[%emt 00:01:01]} Ne4 {[%clk
00:09:53]} {[%emt 00:01:06]} 24. Nxe4 {[%clk 00:03:43]} {[%emt 00:04:17]} Rxe4
{[%clk 00:08:55]} {[%emt 00:01:28]} 25. Nh5 {[%clk 00:03:13]} {[%emt 00:00:58]}
Qg6 {[%clk 00:07:24]} {[%emt 00:02:04]} 26. Ng3 {[%clk 00:03:18]} {[%emt
00:00:27]} Re6 {[%clk 00:07:00]} {[%emt 00:00:50]} 27. Bf4 {[%clk 00:01:27]}
{[%emt 00:02:23]} Ref6 {[%clk 00:05:55]} {[%emt 00:01:35]} 28. Ne2 {[%clk
00:01:32]} {[%emt 00:00:25]} Bb5 {[%clk 00:04:45]} {[%emt 00:01:40]} 29. Bg3
{[%clk 00:01:38]} {[%emt 00:00:23]} Qf7 {[%clk 00:02:30]} {[%emt 00:02:46]} 30.
Nc3 {[%clk 00:01:38]} {[%emt 00:00:30]} Ba5 {[%clk 00:02:09]} {[%emt 00:00:51]}
31. Re3 {[%clk 00:01:26]} {[%emt 00:00:42]} Bd7 {[%clk 00:01:32]} {[%emt
00:01:07]} 32. Rae1 {[%clk 00:01:32]} {[%emt 00:00:23]} Re8 {[%clk 00:01:02]}
{[%emt 00:01:01]} 33. Be5 {[%clk 00:01:16]} {[%emt 00:00:46]} Rg6 {[%clk
00:00:51]} {[%emt 00:00:42]} 34. Qd3 {[%clk 00:00:56]} {[%emt 00:00:49]} Bf5
{[%clk 00:01:01]} {[%emt 00:00:20]} 35. Qb5 {[%clk 00:01:18]} {[%emt 00:00:08]}
Bxc3 {[%clk 00:01:14]} {[%emt 00:00:17]} 36. Rxc3 {[%clk 00:01:28]} {[%emt
00:00:20]} c6 {[%clk 00:01:20]} {[%emt 00:00:24]} 37. Qxa4 {[%clk 00:01:49]}
{[%emt 00:00:09]} Rf8 {[%clk 00:01:19]} {[%emt 00:00:31]} 38. f4 {[%clk
00:01:45]} {[%emt 00:00:33]} Qd7 {[%clk 00:01:01]} {[%emt 00:00:49]} 39. Ree3
{[%clk 00:01:52]} {[%emt 00:00:22]} Be4 {[%clk 00:00:41]} {[%emt 00:00:50]} 40.
Rg3 {[%clk 00:02:13]} {[%emt 00:00:09]} Qf5 {[%clk 00:00:34]} {[%emt 00:00:38]}
41. Kf2 {[%clk 00:01:27]} {[%emt 00:01:16]} h5 {[%clk 00:28:39]} {[%emt
00:02:24]} 42. Rxg6 {[%clk 00:31:32]} {[%emt 00:00:25]} Qxg6 {[%clk 00:28:56]}
{[%emt 00:00:13]} 43. Rg3 {[%clk 00:31:48]} {[%emt 00:00:15]} Rxf4+ {[%clk
00:27:24]} {[%emt 00:02:01]} 44. Bxf4 {[%clk 00:32:04]} {[%emt 00:00:15]} Qf5
{[%clk 00:27:18]} {[%emt 00:00:36]} 45. Ke3 {[%clk 00:30:53]} {[%emt 00:01:41]}
Bc2 {[%clk 00:26:53]} {[%emt 00:00:55]} 46. Qa8+ {[%clk 00:30:58]} {[%emt
00:00:24]} Kh7 {[%clk 00:27:06]} {[%emt 00:00:18]} 47. Qe8 {[%clk 00:30:58]}
{[%emt 00:00:30]} Qd3+ {[%clk 00:26:47]} {[%emt 00:00:50]} 48. Kf2 {[%clk
00:30:57]} {[%emt 00:00:30]} Qxd4+ {[%clk 00:26:53]} {[%emt 00:00:23]} 49. Be3
{[%clk 00:30:56]} {[%emt 00:00:32]} Qf6+ {[%clk 00:26:37]} {[%emt 00:00:45]} 50.
Ke2 {[%clk 00:28:07]} {[%emt 00:03:19]} Qxb2 {[%clk 00:25:39]} {[%emt
00:01:29]} 51. Qxh5+ {[%clk 00:28:17]} {[%emt 00:00:19]} Kg8 {[%clk 00:26:04]}
{[%emt 00:00:06]} 52. Qe8+ {[%clk 00:25:13]} {[%emt 00:03:33]} Kh7 {[%clk
00:26:27]} {[%emt 00:00:07]} 53. Bd2 {[%clk 00:22:09]} {[%emt 00:03:33]} Be4
{[%clk 00:25:15]} {[%emt 00:01:44]} 54. Rg5 {[%clk 00:19:32]} {[%emt 00:03:07]}
Qb5+ {[%clk 00:23:22]} {[%emt 00:02:23]} 55. Kf2 {[%clk 00:19:07]} {[%emt
00:00:52]} Qc5+ {[%clk 00:23:19]} {[%emt 00:00:37]} 56. Be3 {[%clk 00:18:43]}
{[%emt 00:00:54]} Qc2+ {[%clk 00:23:18]} {[%emt 00:00:31]} 57. Kg1 {[%clk
00:18:35]} {[%emt 00:00:34]} g6 {[%clk 00:23:32]} {[%emt 00:00:19]} 58. Qf7+
{[%clk 00:18:49]} {[%emt 00:00:15]} Kh6 {[%clk 00:23:37]} {[%emt 00:00:26]} 59.
Rxg6+ {[%clk 00:18:18]} {[%emt 00:01:00]} Kh5 {[%clk 00:24:01]} {[%emt
00:00:07]} 60. Qh7# {[%clk 00:18:40]} {[%emt 00:00:07]} 1-0

[Event "NJSK 2026 Meisjes C"]
[Site "Helmond, Netherlands"]
[Date "2026.04.27"]
[Round "3.2"]
[White "Oruc, Siraz"]
[Black "Luong, Thao"]
[Result "0-1"]
[TimeControl "90min/40moves + 30min + 30sec/move"]
[WhiteTitle "-"]
[BlackTitle "-"]
[WhiteFideId "40125874"]
[BlackFideId "1091980"]
[WhiteElo "1706"]
[BlackElo "1855"]

1. e4 {[%clk 01:30:59]} e5 {[%clk 01:30:56]} {[%emt 00:00:05]} 2. Nf3 {[%clk
01:31:22]} {[%emt 00:00:06]} Nc6 {[%clk 01:31:22]} {[%emt 00:00:04]} 3. d4
{[%clk 01:31:44]} {[%emt 00:00:08]} exd4 {[%clk 01:31:50]} {[%emt 00:00:02]} 4.
Nxd4 {[%clk 01:32:06]} {[%emt 00:00:08]} Bb4+ {[%clk 01:32:16]} {[%emt
00:00:04]} 5. c3 {[%clk 01:32:18]} {[%emt 00:00:19]} Bc5 {[%clk 01:32:41]}
{[%emt 00:00:04]} 6. Nb3 {[%clk 01:14:44]} {[%emt 00:18:04]} Bb6 {[%clk
01:31:52]} {[%emt 00:01:19]} 7. Bd3 {[%clk 01:06:17]} {[%emt 00:08:57]} d6
{[%clk 01:31:14]} {[%emt 00:01:08]} 8. O-O {[%clk 01:04:30]} {[%emt 00:02:18]}
Nge7 {[%clk 01:31:25]} {[%emt 00:00:19]} 9. N1d2 {[%clk 01:02:00]} {[%emt
00:03:00]} Ne5 {[%clk 01:29:06]} {[%emt 00:02:49]} 10. Be2 {[%clk 00:58:10]}
{[%emt 00:04:20]} O-O {[%clk 01:28:27]} {[%emt 00:01:09]} 11. Nc4 {[%clk
00:52:06]} {[%emt 00:06:34]} Nxc4 {[%clk 01:27:28]} {[%emt 00:01:29]} 12. Bxc4
{[%clk 00:52:19]} {[%emt 00:00:17]} Be6 {[%clk 01:27:53]} {[%emt 00:00:05]} 13.
Bd3 {[%clk 00:41:28]} {[%emt 00:11:21]} Nc6 {[%clk 01:17:32]} {[%emt 00:10:50]}
14. Nd2 {[%clk 00:35:13]} {[%emt 00:06:46]} Ne5 {[%clk 01:15:17]} {[%emt
00:02:45]} 15. Be2 {[%clk 00:34:05]} {[%emt 00:01:37]} f5 {[%clk 01:12:59]}
{[%emt 00:02:48]} 16. exf5 {[%clk 00:29:26]} {[%emt 00:05:09]} Rxf5 {[%clk
01:12:25]} {[%emt 00:01:04]} 17. Bg4 {[%clk 00:27:40]} {[%emt 00:02:16]} Nxg4
{[%clk 01:10:29]} {[%emt 00:02:26]} 18. Qxg4 {[%clk 00:28:01]} {[%emt
00:00:09]} Re5 {[%clk 01:01:18]} {[%emt 00:09:41]} 19. Qf3 {[%clk 00:24:53]}
{[%emt 00:03:38]} Bd5 {[%clk 00:57:13]} {[%emt 00:04:36]} 20. Qf4 {[%clk
00:15:39]} {[%emt 00:09:44]} Qe7 {[%clk 00:53:41]} {[%emt 00:04:01]} 21. Nb3
{[%clk 00:10:18]} {[%emt 00:05:52]} Rf8 {[%clk 00:52:39]} {[%emt 00:01:30]} 22.
Qg3 {[%clk 00:10:27]} {[%emt 00:00:21]} Bxf2+ {[%clk 00:52:35]} {[%emt
00:00:33]} 23. Qxf2 {[%clk 00:09:15]} {[%emt 00:01:43]} Rxf2 {[%clk 00:52:51]}
{[%emt 00:00:15]} 24. Rxf2 {[%clk 00:09:36]} {[%emt 00:00:09]} Re1+ {[%clk
00:53:07]} {[%emt 00:00:14]} 25. Rf1 {[%clk 00:09:57]} {[%emt 00:00:08]} Qe4
{[%clk 00:53:11]} {[%emt 00:00:27]} 0-1

[Event "NJSK 2026 Meisjes C"]
[Site "Helmond, Netherlands"]
[Date "2026.04.27"]
[Round "3.3"]
[White "Ganeshram, Niranjana"]
[Black "Jongejan, Evienne"]
[Result "1-0"]
[TimeControl "90min/40moves + 30min + 30sec/move"]
[WhiteTitle "-"]
[BlackTitle "-"]
[WhiteFideId "40100480"]
[BlackFideId "40109798"]
[WhiteElo "1753"]
[BlackElo "1488"]

1. e4 {[%clk 01:30:58]} {[%emt 00:00:03]} e5 {[%clk 01:30:54]} {[%emt
00:00:07]} 2. Nf3 {[%clk 01:31:21]} {[%emt 00:00:07]} Nc6 {[%clk 01:31:18]}
{[%emt 00:00:05]} 3. Bc4 {[%clk 01:31:47]} {[%emt 00:00:05]} Nf6 {[%clk
01:31:39]} {[%emt 00:00:07]} 4. d3 {[%clk 01:32:12]} {[%emt 00:00:06]} h6
{[%clk 01:31:48]} {[%emt 00:00:21]} 5. Be3 {[%clk 01:32:27]} {[%emt 00:00:15]}
Be7 {[%clk 01:31:40]} {[%emt 00:00:38]} 6. Nc3 {[%clk 01:32:47]} {[%emt
00:00:10]} O-O {[%clk 01:31:52]} {[%emt 00:00:18]} 7. O-O {[%clk 01:31:41]}
{[%emt 00:01:36]} d6 {[%clk 01:31:52]} {[%emt 00:00:30]} 8. h3 {[%clk
01:31:02]} {[%emt 00:01:08]} Be6 {[%clk 01:31:28]} {[%emt 00:00:55]} 9. Bb3
{[%clk 01:30:16]} {[%emt 00:01:17]} d5 {[%clk 01:30:46]} {[%emt 00:01:11]} 10.
exd5 {[%clk 01:26:30]} {[%emt 00:04:16]} Nxd5 {[%clk 01:30:48]} {[%emt
00:00:26]} 11. d4 {[%clk 01:21:06]} {[%emt 00:05:56]} exd4 {[%clk 01:19:35]}
{[%emt 00:11:43]} 12. Nxd4 {[%clk 01:17:43]} {[%emt 00:03:53]} Nxd4 {[%clk
01:19:24]} {[%emt 00:00:41]} 13. Bxd4 {[%clk 01:17:58]} {[%emt 00:00:16]} c5
{[%clk 01:16:50]} {[%emt 00:03:03]} 14. Nxd5 {[%clk 01:12:44]} {[%emt
00:05:44]} Bxd5 {[%clk 01:16:29]} {[%emt 00:00:51]} 15. Bxg7 {[%clk 01:05:34]}
{[%emt 00:07:41]} Kxg7 {[%clk 01:15:03]} {[%emt 00:01:55]} 16. Bxd5 {[%clk
01:04:51]} {[%emt 00:01:13]} Qb6 {[%clk 01:11:55]} {[%emt 00:03:38]} 17. Re1
{[%clk 00:59:44]} {[%emt 00:05:38]} Bf6 {[%clk 01:10:20]} {[%emt 00:02:04]} 18.
Qg4+ {[%clk 00:58:42]} {[%emt 00:01:31]} Kh8 {[%clk 01:10:25]} {[%emt
00:00:26]} 19. Qh5 {[%clk 00:49:37]} {[%emt 00:09:34]} Bxb2 {[%clk 01:06:40]}
{[%emt 00:04:14]} 20. Rab1 {[%clk 00:46:35]} {[%emt 00:03:34]} Qf6 {[%clk
01:06:57]} {[%emt 00:00:12]} 21. Rxb2 {[%clk 00:36:39]} {[%emt 00:10:28]} Qxb2
{[%clk 01:04:40]} {[%emt 00:02:46]} 22. Qxh6+ {[%clk 00:36:53]} {[%emt
00:00:15]} Kg8 {[%clk 01:05:00]} {[%emt 00:00:12]} 23. Re4 {[%clk 00:35:24]}
{[%emt 00:01:59]} Qa1+ {[%clk 01:02:52]} {[%emt 00:02:38]} 24. Kh2 {[%clk
00:35:39]} {[%emt 00:00:14]} Qd1 {[%clk 01:02:52]} {[%emt 00:00:28]} 25. Qg5+
{[%clk 00:35:31]} {[%emt 00:00:40]} Kh8 {[%clk 01:03:05]} {[%emt 00:00:17]} 26.
Rh4+ {[%clk 00:35:56]} {[%emt 00:00:05]} Qh5 {[%clk 01:03:25]} {[%emt
00:00:10]} 27. Rxh5# {[%clk 00:36:24]} {[%emt 00:00:02]} 1-0

[Event "NJSK 2026 Meisjes C"]
[Site "Helmond, Netherlands"]
[Date "2026.04.27"]
[Round "3.7"]
[White "Bakker, Hannah"]
[Black "Barbier, Sarah"]
[Result "1-0"]
[TimeControl "90min/40moves + 30min + 30sec/move"]
[WhiteTitle "-"]
[BlackTitle "-"]
[WhiteFideId "40107671"]
[BlackFideId "1095420"]
[WhiteElo "1634"]
[BlackElo "1487"]

1. e4 {[%clk 01:30:57]} {[%emt 00:00:01]} e5 {[%clk 01:30:57]} {[%emt
00:00:05]} 2. Nf3 {[%clk 01:31:19]} {[%emt 00:00:08]} Nc6 {[%clk 01:31:20]}
{[%emt 00:00:08]} 3. Bc4 {[%clk 01:31:37]} {[%emt 00:00:11]} Bc5 {[%clk
01:31:18]} {[%emt 00:00:32]} 4. c3 {[%clk 01:31:30]} {[%emt 00:00:36]} Nf6
{[%clk 01:31:29]} {[%emt 00:00:20]} 5. d4 {[%clk 01:31:49]} {[%emt 00:00:10]}
exd4 {[%clk 01:31:27]} {[%emt 00:00:33]} 6. e5 {[%clk 01:32:06]} {[%emt
00:00:13]} Qe7 {[%clk 01:30:49]} {[%emt 00:01:08]} 7. cxd4 {[%clk 01:31:42]}
{[%emt 00:00:54]} Bb4+ {[%clk 01:30:30]} {[%emt 00:00:49]} 8. Kf1 {[%clk
01:30:24]} {[%emt 00:01:47]} Ng8 {[%clk 01:27:22]} {[%emt 00:03:38]} 9. Nc3
{[%clk 01:27:10]} {[%emt 00:03:45]} Bxc3 {[%clk 01:26:39]} {[%emt 00:01:13]} 10.
bxc3 {[%clk 01:27:25]} {[%emt 00:00:15]} d6 {[%clk 01:26:43]} {[%emt 00:00:26]}
11. Qb3 {[%clk 01:17:22]} {[%emt 00:10:33]} dxe5 {[%clk 01:18:48]} {[%emt
00:08:24]} 12. dxe5 {[%clk 01:14:11]} {[%emt 00:03:41]} Qd7 {[%clk 01:11:36]}
{[%emt 00:07:42]} 13. Ba3 {[%clk 01:07:54]} {[%emt 00:06:48]} Nh6 {[%clk
01:08:49]} {[%emt 00:03:17]} 14. e6 {[%clk 00:52:16]} {[%emt 00:16:08]} fxe6
{[%clk 01:07:55]} {[%emt 00:01:23]} 15. Bxe6 {[%clk 00:51:17]} {[%emt
00:01:29]} Qd3+ {[%clk 01:05:32]} {[%emt 00:02:53]} 16. Kg1 {[%clk 00:50:49]}
{[%emt 00:00:58]} Bxe6 {[%clk 01:02:32]} {[%emt 00:03:31]} 17. Qxe6+ {[%clk
00:49:25]} {[%emt 00:01:54]} Kd8 {[%clk 01:02:55]} {[%emt 00:00:06]} 18. Qb3
{[%clk 00:48:46]} {[%emt 00:01:09]} Kc8 {[%clk 01:00:05]} {[%emt 00:03:20]} 19.
h3 {[%clk 00:38:13]} {[%emt 00:11:03]} Qf5 {[%clk 00:48:04]} {[%emt 00:12:30]}
20. Rd1 {[%clk 00:33:52]} {[%emt 00:04:52]} Rd8 {[%clk 00:43:44]} {[%emt
00:04:50]} 21. Nd4 {[%clk 00:29:14]} {[%emt 00:05:09]} Nxd4 {[%clk 00:43:08]}
{[%emt 00:01:05]} 22. Rxd4 {[%clk 00:29:04]} {[%emt 00:00:41]} Rxd4 {[%clk
00:42:20]} {[%emt 00:01:18]} 23. cxd4 {[%clk 00:29:29]} {[%emt 00:00:05]} Qe4
{[%clk 00:42:06]} {[%emt 00:00:43]} 24. Qb4 {[%clk 00:28:30]} {[%emt 00:01:29]}
b6 {[%clk 00:38:51]} {[%emt 00:03:45]} 25. g4 {[%clk 00:18:51]} {[%emt
00:10:08]} Kb7 {[%clk 00:38:10]} {[%emt 00:01:12]} 26. Bc1 {[%clk 00:16:19]}
{[%emt 00:03:02]} Rd8 {[%clk 00:34:09]} {[%emt 00:04:31]} 27. Be3 {[%clk
00:15:04]} {[%emt 00:01:45]} c5 {[%clk 00:33:20]} {[%emt 00:01:19]} 28. Qd2
{[%clk 00:08:17]} {[%emt 00:07:14]} cxd4 {[%clk 00:32:20]} {[%emt 00:01:33]} 29.
Bxh6 {[%clk 00:04:38]} {[%emt 00:04:10]} gxh6 {[%clk 00:32:31]} {[%emt
00:00:18]} 30. Kh2 {[%clk 00:04:18]} {[%emt 00:00:50]} d3 {[%clk 00:31:15]}
{[%emt 00:01:46]} 31. Re1 {[%clk 00:04:11]} {[%emt 00:00:37]} Qc4 {[%clk
00:30:33]} {[%emt 00:01:12]} 32. Re7+ {[%clk 00:03:36]} {[%emt 00:01:04]} Ka6
{[%clk 00:30:29]} {[%emt 00:00:34]} 33. Rxh7 {[%clk 00:03:13]} {[%emt
00:00:55]} Qe4 {[%clk 00:26:35]} {[%emt 00:04:23]} 34. Rxh6 {[%clk 00:02:45]}
{[%emt 00:00:58]} Qe5+ {[%clk 00:26:49]} {[%emt 00:00:16]} 35. Kg2 {[%clk
00:02:49]} {[%emt 00:00:26]} Kb7 {[%clk 00:26:00]} {[%emt 00:01:19]} 36. Rh7+
{[%clk 00:02:49]} {[%emt 00:00:30]} Ka8 {[%clk 00:25:58]} {[%emt 00:00:32]} 37.
Rh5 {[%clk 00:02:32]} {[%emt 00:00:47]} Qe4+ {[%clk 00:25:35]} {[%emt
00:00:52]} 38. f3 {[%clk 00:01:54]} {[%emt 00:01:09]} Qc4 {[%clk 00:25:54]}
{[%emt 00:00:11]} 39. Rh6 {[%clk 00:01:42]} {[%emt 00:00:43]} Rc8 {[%clk
00:25:12]} {[%emt 00:01:10]} 40. Rd6 {[%clk 00:01:05]} {[%emt 00:01:07]} Qa4
{[%clk 00:21:54]} {[%emt 00:03:49]} 41. Qxd3 {[%clk 00:00:35]} {[%emt
00:01:00]} Qxa2+ {[%clk 00:21:54]} {[%emt 00:00:31]} 42. Kg3 {[%clk 00:26:02]}
{[%emt 00:05:02]} Qa1 {[%clk 00:51:04]} {[%emt 00:01:18]} 43. Rd7 {[%clk
00:19:47]} {[%emt 00:06:46]} Qe1+ {[%clk 00:50:22]} {[%emt 00:01:12]} 44. Kg2
{[%clk 00:19:21]} {[%emt 00:00:57]} Qc1 {[%clk 00:48:11]} {[%emt 00:02:41]} 45.
Qd5+ {[%clk 00:12:50]} {[%emt 00:07:01]} Rc6 {[%clk 00:47:19]} {[%emt
00:01:21]} 46. Rc7 {[%clk 00:11:15]} {[%emt 00:02:06]} Qd2+ {[%clk 00:43:51]}
{[%emt 00:03:57]} 47. Qxd2 {[%clk 00:10:33]} {[%emt 00:01:13]} Rxc7 {[%clk
00:44:17]} {[%emt 00:00:04]} 48. g5 {[%clk 00:09:32]} {[%emt 00:01:30]} a5
{[%clk 00:44:19]} {[%emt 00:00:29]} 49. Qd8+ {[%clk 00:09:23]} {[%emt
00:00:38]} Kb7 {[%clk 00:44:41]} {[%emt 00:00:09]} 50. Qxc7+ {[%clk 00:09:42]}
{[%emt 00:00:11]} Kxc7 {[%clk 00:44:36]} {[%emt 00:00:35]} 51. g6 {[%clk
00:10:05]} {[%emt 00:00:07]} a4 {[%clk 00:45:02]} {[%emt 00:00:05]} 52. g7
{[%clk 00:10:30]} {[%emt 00:00:04]} b5 {[%clk 00:45:19]} {[%emt 00:00:12]} 53.
g8=Q {[%clk 00:10:48]} {[%emt 00:00:11]} Kb6 {[%clk 00:45:30]} {[%emt
00:00:21]} 54. Qd8+ {[%clk 00:09:10]} {[%emt 00:02:08]} Kc5 {[%clk 00:45:50]}
{[%emt 00:00:10]} 55. Qa5 {[%clk 00:09:03]} {[%emt 00:00:38]} Kc4 {[%clk
00:45:58]} {[%emt 00:00:21]} 56. Kf2 {[%clk 00:08:49]} {[%emt 00:00:44]} b4
{[%clk 00:45:24]} {[%emt 00:01:05]} 57. Qxa4 {[%clk 00:09:04]} {[%emt
00:00:14]} Kc3 {[%clk 00:45:49]} {[%emt 00:00:04]} 58. Qxb4+ {[%clk 00:08:18]}
{[%emt 00:01:17]} Kxb4 {[%clk 00:46:00]} {[%emt 00:00:19]} 59. h4 {[%clk
00:08:42]} {[%emt 00:00:05]} 1-0